[Event "Caplin Hastings Masters 2023-24"]
[Site "Hastings"]
[Date "2024.01.02"]
[Round "6.36"]
[White "Flynn, David"]
[Black "Fryer, David W"]
[Result "1-0"]
[ECO "C46"]
[WhiteElo "1791"]
[BlackElo "1914"]
[Annotator "RC"]
[PlyCount "137"]
[EventDate "2023.12.18"]
[EventType "swiss"]
[EventCountry "ENG"]
[SourceTitle "playchess.com"]
[Source "ChessBase"]
[SourceQuality "1"]
[TimeControl "40/6000+30:3000+30"]

1. e4 {[%emt 0:00:08]} e5 {[%emt 0:00:09]} 2. Nf3 {[%emt 0:00:09]} Nc6 {[%emt 0:00:10]} 3. d4 {[%emt 0:00:04]} exd4 {[%emt 0:00:10]} 4. Nxd4 {[%emt 0:00:07]} d6 {[%emt 0:06:21]} 5. Nc3 {[%emt 0:01:09]} Bd7 {[%emt 0:03:03]} 6. Nde2 {[%emt 0:03:17]} g6 {[%emt 0:07:56]} 7. Be3 {[%emt 0:03:19]} Bg7 {[%emt 0:00:27]} 8. Qd2 {[%emt 0:00:21]} a6 {[%emt 0:12:23]} 9. g3 {[%emt 0:06:20]} Ne5 {[%emt 0:06:24]} 10. Ng1 {[%emt 0:02:24]} b5 {[%emt 0:04:48]} 11. Bd4 {[%emt 0:30:02]} Nf6 {[%emt 0:05:53]} 12. Qe2 {[%emt 0:14:37]} O-O {[%emt 0:01:17]} 13. Bg2 {[%emt 0:02:04]} c6 {[%emt 0:05:16]} 14. O-O-O {[%emt 0:17:04]} Qc7 {[%emt 0:05:18]} 15. f4 {[%emt 0:03:08]} Nc4 {[%emt 0:03:36]} 16. b3 {[%emt 0:02:21]} Qa5 {[%emt 0:09:35]} 17. bxc4 {[%emt 0:03:39]} c5 {[%emt 0:02:28]} 18. Bxf6 {[%emt 0:01:25]} Qa3+ {[%emt 0:02:08]} 19. Kd2 {[%emt 0:03:51]} Bxf6 {[%emt 0:00:40]} 20. Nd5 {[%emt 0:06:00]} Bd4 {[%emt 0:02:28]} 21. Qd3 {[%emt 0:02:16]} Qa5+ {[%emt 0:01:11]} 22. Ke2 {[%emt 0:00:43]} bxc4 {[%emt 0:01:51]} 23. Qd2 {[%emt 0:02:01]} c3 {[%emt 0:04:06]} 24. Qc1 {[%emt 0:01:03]} Bb5+ {[%emt 0:01:19]} 25. Kf3 {[%emt 0:01:31]} f5 {[%emt 0:02:55]} 26. Bf1 {[%emt 0:01:12]} fxe4+ {[%emt 0:02:46]} 27. Kg2 {[%emt 0:00:24]} Rae8 {[%emt 0:05:46]} 28. Bxb5 {[%emt 0:00:20]} axb5 {[%emt 0:00:14]} 29. Ne2 {[%emt 0:00:39]} Bg7 {[%emt 0:05:16]} 30. Qb1 {[%emt 0:00:17]} b4 {[%emt 0:04:07]} 31. Qb3 {[%emt 0:00:28]} Kh8 {[%emt 0:00:09]} 32. Qc4 {[%emt 0:00:28]} Qa4 {[%emt 0:00:47]} 33. Qb3 {[%emt 0:01:34]} Qd7 {[%emt 0:00:23]} 34. Ne3 {[%emt 0:01:06]} g5 {[%emt 0:02:55]} 35. Rhf1 {[%emt 0:00:48]} h5 {[%emt 0:01:24]} 36. Qd5 {[%emt 0:01:07]} Rf6 {[%emt 0:01:50]} 37. Qxg5 {[%emt 0:00:26]} Qf7 {[%emt 0:00:45]} 38. Qd5 {[%emt 0:00:17]} Qg6 {[%emt 0:00:22]} 39. Nc1 {[%emt 0:01:00]} Ref8 {[%emt 0:00:32]} 40. Ne2 {[%emt 0:00:29]} h4 {[%emt 0:00:41]} 41. Qg5 {[%emt 0:08:34]} Qh7 {[%emt 0:01:07]} 42. Rh1 {[%emt 0:10:39]} h3+ {[%emt 0:01:01]} 43. Kf2 {[%emt 0:00:06]} Rh6 {[%emt 0:03:00]} 44. Rhf1 {[%emt 0:03:57]} Rg6 {[%emt 0:00:54]} 45. Qe7 {[%emt 0:04:25]} Qh6 {[%emt 0:02:36]} 46. Rd5 {[%emt 0:11:32]} Be5 {[%emt 0:08:52]} 47. Ke1 {[%emt 0:05:10]} Re6 {[%emt 0:05:54]} 48. Qd7 {[%emt 0:04:29]} Bg7 {[%emt 0:04:57]} 49. Nf5 {[%emt 0:01:47]} Qf6 {[%emt 0:02:31]} 50. Qxg7+ {[%emt 0:01:19]} Qxg7 {[%emt 0:00:09]} 51. Nxg7 {[%emt 0:00:04]} Kxg7 {[%emt 0:00:12]} 52. Kf2 {[%emt 0:01:23]} Ra8 {[%emt 0:01:53]} 53. Nc1 {[%emt 0:00:41]} Kf7 {[%emt 0:02:45]} 54. Re1 {[%emt 0:01:05]} Ra6 {[%emt 0:02:09]} 55. g4 {[%emt 0:00:53]} Re8 {[%emt 0:00:25]} 56. Kg3 {[%emt 0:00:30]} Rea8 {[%emt 0:03:21]} 57. Rxe4 {[%emt 0:00:36]} Rxa2 {[%emt 0:00:07]} 58. Nxa2 {[%emt 0:00:13]} Rxa2 {[%emt 0:00:07]} 59. Rf5+ {[%emt 0:00:17]} Kg8 {[%emt 0:00:31]} 60. Re8+ {[%emt 0:00:13]} Kg7 {[%emt 0:00:13]} 61. Re7+ {[%emt 0:00:02]} Kg6 {[%emt 0:00:23]} 62. Re6+ {[%emt 0:00:22]} Kg7 {[%emt 0:00:10]} 63. Rxd6 {[%emt 0:00:12]} Rxc2 {[%emt 0:02:12]} 64. Rxc5 {[%emt 0:00:19]} Re2 {[%emt 0:01:00]} 65. Rb6 {[%emt 0:02:03]} b3 {[%emt 0:00:33]} 66. Rc7+ {[%emt 0:00:10]} Kf8 {[%emt 0:00:09]} 67. Rb8+ {[%emt 0:00:15]} Re8 {[%emt 0:00:07]} 68. Rxe8+ {[%emt 0:00:10]} Kxe8 {[%emt 0:00:14]} 69. Rxc3 {[%emt 0:00:05]} 1-0

[Event "Caplin Hastings Masters 2023-24"]
[Site "Hastings"]
[Date "2024.01.02"]
[Round "6.37"]
[White "Honey, Luke Anthony"]
[Black "Rastogi, Nayan Keats"]
[Result "1-0"]
[ECO "B90"]
[WhiteElo "1907"]
[BlackElo "1662"]
[Annotator "NA RC"]
[PlyCount "95"]
[EventDate "2023.12.18"]
[EventType "swiss"]
[EventCountry "ENG"]
[SourceTitle "playchess.com"]
[Source "ChessBase"]
[SourceQuality "1"]
[TimeControl "40/6000+30:3000+30"]

1. e4 {[%emt 0:00:03]} c5 {[%emt 0:00:03]} 2. Nf3 {[%emt 0:00:06]} d6 {[%emt 0:00:05]} 3. d4 {[%emt 0:00:03]} cxd4 {[%emt 0:00:04]} 4. Nxd4 {[%emt 0:00:04]} Nf6 {[%emt 0:00:10]} 5. Nc3 {[%emt 0:00:03]} a6 {[%emt 0:00:06]} 6. Rg1 {[%emt 0:00:03]} e5 {[%emt 0:00:18]} 7. Nb3 {[%emt 0:00:04]} Be6 {[%emt 0:00:07]} 8. g4 {[%emt 0:00:05]} d5 {[%emt 0:00:04]} 9. exd5 {[%emt 0:00:04]} Nxd5 {[%emt 0:00:05]} 10. Nxd5 {[%emt 0:00:05]} Qxd5 {[%emt 0:00:04]} 11. Qxd5 {[%emt 0:00:05]} Bxd5 {[%emt 0:00:04]} 12. Be3 {[%emt 0:00:07]} Nc6 {[%emt 0:00:04]} 13. O-O-O {[%emt 0:00:06]} O-O-O {[%emt 0:00:07]} 14. Bb6 {[%emt 0:00:04]} Rd6 {[%emt 0:00:12]} 15. g5 {[%emt 0:00:29]} Be6 {[%emt 0:00:18]} 16. Bg2 {[%emt 0:01:01]} Nb4 {[%emt 0:18:00]} 17. Rxd6 {[%emt 0:17:37]} Bxd6 {[%emt 0:00:30]} 18. Na5 {[%emt 0:05:31]} e4 {[%emt 0:28:01]} 19. Bxe4 {[%emt 0:08:37]} Nd5 {[%emt 0:02:14]} 20. Bxd5 {[%emt 0:02:47]} Bxd5 {[%emt 0:04:31]} 21. Rd1 {[%emt 0:00:27]} Bf4+ {[%emt 0:00:36]} 22. Be3 {[%emt 0:00:10]} Bxe3+ {[%emt 0:00:45]} 23. fxe3 {[%emt 0:00:06]} Bf3 {[%emt 0:02:46]} 24. Rd4 {[%emt 0:03:50]} Re8 {[%emt 0:05:37]} 25. Nc4 {[%emt 0:00:31]} Kc7 {[%emt 0:02:00]} 26. Kd2 {[%emt 0:01:13]} Re6 {[%emt 0:05:19]} 27. Rf4 {[%emt 0:03:25]} Bh5 {[%emt 0:02:19]} 28. b3 {[%emt 0:01:10]} Bg6 {[%emt 0:03:55]} 29. h4 {[%emt 0:02:10]} b5 {[%emt 0:04:22]} 30. Nb2 {[%emt 0:01:13]} f6 {[%emt 0:04:30]} 31. gxf6 {[%emt 0:01:14]} gxf6 {[%emt 0:03:07]} 32. Nd3 {[%emt 0:01:50]} Rd6 {[%emt 0:04:12]} 33. Rd4 {[%emt 0:02:19]} f5 {[%emt 0:03:56]} 34. Nf4 {[%emt 0:01:08]} Bf7 {[%emt 0:01:34]} 35. Kd3 {[%emt 0:02:44]} b4 {[%emt 0:00:39]} 36. Rxd6 {[%emt 0:00:53]} Kxd6 {[%emt 0:00:06]} 37. Kd4 {[%emt 0:00:10]} a5 {[%emt 0:02:36]} 38. Nd3 {[%emt 0:01:36]} Bd5 {[%emt 0:09:15]} 39. Ne5 {[%emt 0:04:08]} Be4 {[%emt 0:02:23]} 40. Nc4+ {[%emt 0:00:36]} Kc6 {[%emt 0:00:48]} 41. Nxa5+ {[%emt 0:53:59]} Kb5 {[%emt 0:50:54]} 42. Nc4 {[%emt 0:00:09]} Bxc2 {[%emt 0:00:46]} 43. a4+ {[%emt 0:00:31]} Ka6 {[%emt 0:02:35]} 44. Nd2 {[%emt 0:00:10]} Ka5 {[%emt 0:01:11]} 45. Kc5 {[%emt 0:00:25]} Bxb3 {[%emt 0:00:40]} 46. Nxb3+ {[%emt 0:00:19]} Kxa4 {[%emt 0:00:07]} 47. Kc4 {[%emt 0:00:15]} Ka3 {[%emt 0:00:23]} 48. Nc5 {[%emt 0:00:24]} 1-0

[Event "Caplin Hastings Masters 2023-24"]
[Site "Hastings"]
[Date "2024.01.02"]
[Round "6.38"]
[White "Nainika, Gupta"]
[Black "Ortiz Sanchez, Luis"]
[Result "1-0"]
[ECO "B22"]
[WhiteElo "1543"]
[BlackElo "1863"]
[Annotator "NA RC"]
[PlyCount "111"]
[EventDate "2023.12.18"]
[EventType "swiss"]
[EventCountry "ENG"]
[SourceTitle "playchess.com"]
[Source "ChessBase"]
[SourceQuality "1"]
[TimeControl "40/6000+30:3000+30"]

1. e4 {[%emt 0:00:14]} c5 {[%emt 0:03:17]} 2. d4 {[%emt 0:01:12]} cxd4 {[%emt 0:00:15]} 3. c3 {[%emt 0:00:19]} Nf6 {[%emt 0:00:29]} 4. e5 {[%emt 0:01:20]} Nd5 {[%emt 0:00:07]} 5. Qxd4 {[%emt 0:00:19]} e6 {[%emt 0:00:12]} 6. Bd3 {[%emt 0:00:34]} Nc6 {[%emt 0:00:10]} 7. Qe4 {[%emt 0:01:04]} f5 {[%emt 0:00:43]} 8. exf6 {[%emt 0:01:16]} Nxf6 {[%emt 0:01:13]} 9. Qh4 {[%emt 0:01:08]} Ne5 {[%emt 0:03:40]} 10. Bc2 {[%emt 0:02:24]} Nf7 {[%emt 0:01:20]} 11. Nf3 {[%emt 0:02:23]} Be7 {[%emt 0:06:59]} 12. O-O {[%emt 0:06:32]} d5 {[%emt 0:08:11]} 13. Re1 {[%emt 0:12:24]} Bd7 {[%emt 0:06:18]} 14. a4 {[%emt 0:08:55]} g6 {[%emt 0:15:02]} 15. Ng5 {[%emt 0:27:27]} Ne4 {[%emt 0:02:56]} 16. Bxe4 {[%emt 0:01:46]} Bxg5 {[%emt 0:02:05]} 17. Bxg5 {[%emt 0:00:16]} Qxg5 {[%emt 0:07:24]} 18. Qxg5 {[%emt 0:00:47]} Nxg5 {[%emt 0:00:02]} 19. Bxd5 {[%emt 0:00:45]} O-O-O {[%emt 0:02:18]} 20. Bb3 {[%emt 0:01:26]} Rhe8 {[%emt 0:04:49]} 21. Na3 {[%emt 0:01:46]} Nf7 {[%emt 0:05:20]} 22. Nc2 {[%emt 0:03:06]} Nd6 {[%emt 0:01:15]} 23. Rad1 {[%emt 0:02:11]} Nf5 {[%emt 0:02:14]} 24. f3 {[%emt 0:04:25]} Kc7 {[%emt 0:06:04]} 25. Nd4 {[%emt 0:01:50]} e5 {[%emt 0:02:56]} 26. Nxf5 {[%emt 0:02:06]} gxf5 {[%emt 0:01:44]} 27. Bc2 {[%emt 0:01:48]} Re7 {[%emt 0:01:52]} 28. b4 {[%emt 0:03:56]} b6 {[%emt 0:02:11]} 29. Bb3 {[%emt 0:02:10]} Bc6 {[%emt 0:01:42]} 30. Rxd8 {[%emt 0:01:17]} Kxd8 {[%emt 0:01:28]} 31. b5 {[%emt 0:00:13]} Bb7 {[%emt 0:01:06]} 32. Bc2 {[%emt 0:00:30]} Bc8 {[%emt 0:03:27]} 33. Rd1+ {[%emt 0:01:58]} Ke8 {[%emt 0:05:23]} 34. Rd6 {[%emt 0:01:40]} Rc7 {[%emt 0:01:10]} 35. Rf6 {[%emt 0:01:48]} Ke7 {[%emt 0:01:25]} 36. Rh6 {[%emt 0:03:37]} Rxc3 {[%emt 0:01:05]} 37. Rxh7+ {[%emt 0:00:15]} Kf6 {[%emt 0:00:28]} 38. Rh6+ {[%emt 0:00:25]} Ke7 {[%emt 0:00:37]} 39. Rc6 {[%emt 0:02:13]} Rxc6 {[%emt 0:00:15]} 40. bxc6 {[%emt 0:00:02]} Kd6 {[%emt 0:02:13]} 41. h4 {[%emt 0:52:00]} Ke7 {[%emt 0:39:56]} 42. Bb3 {[%emt 0:00:00]} f4 {[%emt 0:00:50]} 43. Bd5 {[%emt 0:00:00]} a6 {[%emt 0:01:55]} 44. Kf2 {[%emt 0:00:00]} Kf6 {[%emt 0:00:55]} 45. h5 {[%emt 0:00:00]} b5 {[%emt 0:01:27]} 46. axb5 {[%emt 0:00:00]} axb5 {[%emt 0:00:01]} 47. Ke2 {[%emt 0:00:00]} b4 {[%emt 0:01:05]} 48. Kd3 {[%emt 0:00:00]} Ba6+ {[%emt 0:00:49]} 49. Bc4 {[%emt 0:00:00]} Bc8 {[%emt 0:00:17]} 50. Kc2 {[%emt 0:00:00]} Kg5 {[%emt 0:01:16]} 51. Bf7 {[%emt 0:00:00]} Kf6 {[%emt 0:00:42]} 52. Be8 {[%emt 0:00:00]} Kg5 {[%emt 0:00:29]} 53. Bd7 {[%emt 0:00:00]} Ba6 {[%emt 0:00:12]} 54. c7 {[%emt 0:00:00]} Kxh5 {[%emt 0:00:39]} 55. c8=Q {[%emt 0:00:00]} Bxc8 {[%emt 0:00:08]} 56. Bxc8 {[%emt 0:00:00]} 1-0

[Event "Caplin Hastings Masters 2023-24"]
[Site "Hastings"]
[Date "2024.01.02"]
[Round "6.39"]
[White "Seo, Juwon"]
[Black "Sivanandan, Bodhana"]
[Result "0-1"]
[ECO "B15"]
[WhiteElo "1405"]
[BlackElo "1857"]
[Annotator "NA RC"]
[PlyCount "104"]
[EventDate "2023.12.18"]
[EventType "swiss"]
[EventCountry "ENG"]
[SourceTitle "playchess.com"]
[Source "ChessBase"]
[SourceQuality "1"]
[TimeControl "40/6000+30:3000+30"]

1. e4 {[%emt 0:00:06]} c6 {[%emt 0:04:18]} 2. d4 {[%emt 0:02:16]} d5 {[%emt 0:00:19]} 3. Nc3 {[%emt 0:01:07]} dxe4 {[%emt 0:00:16]} 4. Nxe4 {[%emt 0:00:32]} Nf6 {[%emt 0:00:22]} 5. Nxf6+ {[%emt 0:00:53]} exf6 {[%emt 0:00:13]} 6. c3 {[%emt 0:02:50]} Bd6 {[%emt 0:00:28]} 7. Bd3 {[%emt 0:01:16]} O-O {[%emt 0:00:46]} 8. Qc2 {[%emt 0:01:12]} Re8+ {[%emt 0:00:24]} 9. Ne2 {[%emt 0:01:24]} h5 {[%emt 0:00:28]} 10. O-O {[%emt 0:00:48]} h4 {[%emt 0:00:47]} 11. h3 {[%emt 0:01:05]} Nd7 {[%emt 0:01:14]} 12. Be3 {[%emt 0:04:15]} Nf8 {[%emt 0:02:10]} 13. Rad1 {[%emt 0:01:53]} Bd7 {[%emt 0:02:08]} 14. Nf4 {[%emt 0:02:05]} Rc8 {[%emt 0:01:43]} 15. Rfe1 {[%emt 0:02:57]} Bb8 {[%emt 0:00:56]} 16. Bf5 {[%emt 0:11:33]} g6 {[%emt 0:12:51]} 17. Bxd7 {[%emt 0:02:48]} Qxd7 {[%emt 0:00:28]} 18. Qb3 {[%emt 0:06:28]} Rcd8 {[%emt 0:05:24]} 19. Bd2 {[%emt 0:13:18]} Qc7 {[%emt 0:06:10]} 20. Be3 {[%emt 0:03:38]} Ne6 {[%emt 0:03:34]} 21. Ne2 {[%emt 0:02:25]} Qh2+ {[%emt 0:03:34]} 22. Kf1 {[%emt 0:00:10]} Qh1+ {[%emt 0:00:12]} 23. Ng1 {[%emt 0:00:09]} Bh2 {[%emt 0:00:12]} 24. Ke2 {[%emt 0:02:08]} Qxg2 {[%emt 0:01:13]} 25. Kd2 {[%emt 0:03:47]} c5 {[%emt 0:05:09]} 26. Kc1 {[%emt 0:03:06]} cxd4 {[%emt 0:02:40]} 27. cxd4 {[%emt 0:00:06]} Nxd4 {[%emt 0:06:59]} 28. Bxd4 {[%emt 0:03:59]} Rxe1 {[%emt 0:00:12]} 29. Rxe1 {[%emt 0:00:13]} Rxd4 {[%emt 0:00:25]} 30. Qa3 {[%emt 0:01:36]} Kg7 {[%emt 0:04:56]} 31. Nf3 {[%emt 0:02:02]} Rc4+ {[%emt 0:03:22]} 32. Kb1 {[%emt 0:00:16]} Qxf2 {[%emt 0:01:01]} 33. Qd3 {[%emt 0:01:23]} Rf4 {[%emt 0:03:43]} 34. Rf1 {[%emt 0:00:32]} Qg2 {[%emt 0:00:57]} 35. a3 {[%emt 0:01:14]} Qxh3 {[%emt 0:01:27]} 36. Qe2 {[%emt 0:00:55]} Bg3 {[%emt 0:01:24]} 37. Ka1 {[%emt 0:01:08]} Qf5 {[%emt 0:01:05]} 38. Qg2 {[%emt 0:02:39]} g5 {[%emt 0:00:41]} 39. Nd2 {[%emt 0:00:54]} Rxf1+ {[%emt 0:00:16]} 40. Nxf1 {[%emt 0:00:05]} Qf2 {[%emt 0:00:48]} 41. Qxf2 {[%emt 0:50:38]} Bxf2 {[%emt 0:49:33]} 42. Nh2 {[%emt 0:00:04]} f5 {[%emt 0:00:11]} 43. Kb1 {[%emt 0:00:03]} g4 {[%emt 0:00:07]} 44. Kc2 {[%emt 0:00:04]} g3 {[%emt 0:00:10]} 45. Nf3 {[%emt 0:00:01]} h3 {[%emt 0:00:08]} 46. Kd2 {[%emt 0:00:02]} h2 {[%emt 0:00:07]} 47. Nxh2 {[%emt 0:00:07]} gxh2 {[%emt 0:00:07]} 48. Ke2 {[%emt 0:00:01]} h1=Q {[%emt 0:00:32]} 49. Kxf2 {[%emt 0:00:04]} f4 {[%emt 0:00:10]} 50. b4 {[%emt 0:00:03]} Qh2+ {[%emt 0:00:14]} 51. Kf1 {[%emt 0:00:03]} f3 {[%emt 0:00:08]} 52. Ke1 {[%emt 0:00:03]} Qe2# {[%emt 0:00:08]} 0-1

[Event "Caplin Hastings Masters 2023-24"]
[Site "Hastings"]
[Date "2024.01.02"]
[Round "6.41"]
[White "Kovalskyi, Roman"]
[Black "Howell, Oliver W"]
[Result "1-0"]
[ECO "C02"]
[WhiteElo "2009"]
[BlackElo "1782"]
[Annotator "NA RC"]
[PlyCount "71"]
[EventDate "2023.12.18"]
[EventType "swiss"]
[EventCountry "ENG"]
[SourceTitle "playchess.com"]
[Source "ChessBase"]
[SourceQuality "1"]
[TimeControl "40/6000+30:3000+30"]

1. e4 {[%emt 0:05:55]} e6 {[%emt 0:06:50]} 2. d4 {[%emt 0:00:08]} d5 {[%emt 0:00:32]} 3. e5 {[%emt 0:00:06]} c5 {[%emt 0:00:17]} 4. c3 {[%emt 0:00:10]} Nc6 {[%emt 0:00:24]} 5. Nf3 {[%emt 0:00:06]} Bd7 {[%emt 0:00:20]} 6. Be2 {[%emt 0:00:11]} Nge7 {[%emt 0:07:01]} 7. Na3 {[%emt 0:02:09]} cxd4 {[%emt 0:01:50]} 8. cxd4 {[%emt 0:00:15]} Qb6 {[%emt 0:03:06]} 9. O-O {[%emt 0:01:14]} Rc8 {[%emt 0:08:22]} 10. Kh1 {[%emt 0:06:46]} Nf5 {[%emt 0:03:17]} 11. Nc2 {[%emt 0:01:10]} Nb4 {[%emt 0:05:42]} 12. Nxb4 {[%emt 0:03:18]} Qxb4 {[%emt 0:09:45]} 13. Bd3 {[%emt 0:02:52]} Bb5 {[%emt 0:07:48]} 14. Bd2 {[%emt 0:33:31]} Qa4 {[%emt 0:00:55]} 15. Rc1 {[%emt 0:00:42]} Kd7 {[%emt 0:11:46]} 16. Rxc8 {[%emt 0:18:04]} Kxc8 {[%emt 0:00:07]} 17. Bxf5 {[%emt 0:00:04]} exf5 {[%emt 0:02:58]} 18. Qxa4 {[%emt 0:25:24]} Bxa4 {[%emt 0:00:03]} 19. Ng5 {[%emt 0:00:04]} Be8 {[%emt 0:01:11]} 20. Rc1+ {[%emt 0:03:23]} Kb8 {[%emt 0:01:55]} 21. Bf4 {[%emt 0:00:45]} Bc6 {[%emt 0:02:00]} 22. e6+ {[%emt 0:03:07]} Kc8 {[%emt 0:01:54]} 23. Nxf7 {[%emt 0:00:54]} g5 {[%emt 0:01:04]} 24. Bxg5 {[%emt 0:01:28]} Rg8 {[%emt 0:00:12]} 25. e7 {[%emt 0:00:16]} Bxe7 {[%emt 0:00:21]} 26. Bxe7 {[%emt 0:00:04]} Rg7 {[%emt 0:00:48]} 27. Nd6+ {[%emt 0:00:06]} Kd7 {[%emt 0:00:12]} 28. Nxf5 {[%emt 0:00:05]} Rf7 {[%emt 0:00:26]} 29. g4 {[%emt 0:00:05]} Rxf5 {[%emt 0:00:50]} 30. gxf5 {[%emt 0:00:04]} Kxe7 {[%emt 0:00:04]} 31. Re1+ {[%emt 0:00:26]} Kf6 {[%emt 0:00:09]} 32. Re5 {[%emt 0:00:07]} Bd7 {[%emt 0:00:19]} 33. Kg1 {[%emt 0:00:09]} Bxf5 {[%emt 0:00:09]} 34. Rxd5 {[%emt 0:00:04]} Be6 {[%emt 0:00:14]} 35. Rd6 {[%emt 0:00:32]} Ke7 {[%emt 0:00:31]} 36. Rxe6+ {[%emt 0:00:06]} 1-0

[Event "Caplin Hastings Masters 2023-24"]
[Site "Hastings"]
[Date "2024.01.02"]
[Round "6.42"]
[White "Ruane, Brendan J"]
[Black "Moracchini, Margaux"]
[Result "0-1"]
[ECO "B51"]
[WhiteElo "1823"]
[BlackElo "1922"]
[Annotator "NA RC"]
[PlyCount "76"]
[EventDate "2023.12.18"]
[EventType "swiss"]
[EventCountry "ENG"]
[SourceTitle "playchess.com"]
[Source "ChessBase"]
[SourceQuality "1"]
[TimeControl "40/6000+30:3000+30"]

1. e4 {[%emt 0:00:03]} c5 {[%emt 0:09:16]} 2. Nf3 {[%emt 0:00:07]} d6 {[%emt 0:00:20]} 3. Bb5+ {[%emt 0:00:09]} Nd7 {[%emt 0:00:30]} 4. O-O {[%emt 0:00:10]} a6 {[%emt 0:00:49]} 5. Bd3 {[%emt 0:00:08]} g6 {[%emt 0:02:54]} 6. c3 {[%emt 0:00:48]} Bg7 {[%emt 0:01:34]} 7. a4 {[%emt 0:00:32]} b6 {[%emt 0:02:16]} 8. Bc4 {[%emt 0:04:25]} e6 {[%emt 0:01:59]} 9. d4 {[%emt 0:01:26]} cxd4 {[%emt 0:04:42]} 10. cxd4 {[%emt 0:00:11]} Ne7 {[%emt 0:10:15]} 11. Nc3 {[%emt 0:00:53]} O-O {[%emt 0:00:17]} 12. Bf4 {[%emt 0:03:48]} Nb8 {[%emt 0:02:14]} 13. d5 {[%emt 0:05:30]} e5 {[%emt 0:02:06]} 14. Be3 {[%emt 0:04:41]} h6 {[%emt 0:03:20]} 15. Nd2 {[%emt 0:01:37]} f5 {[%emt 0:01:01]} 16. f4 {[%emt 0:11:26]} exf4 {[%emt 0:08:14]} 17. Bxf4 {[%emt 0:01:46]} g5 {[%emt 0:00:19]} 18. Bg3 {[%emt 0:03:07]} f4 {[%emt 0:00:27]} 19. Bf2 {[%emt 0:00:40]} Nd7 {[%emt 0:02:02]} 20. Nb3 {[%emt 0:05:42]} Ne5 {[%emt 0:01:39]} 21. Be2 {[%emt 0:00:34]} N7g6 {[%emt 0:13:29]} 22. Nd4 {[%emt 0:02:47]} g4 {[%emt 0:07:17]} 23. Nf5 {[%emt 0:10:40]} h5 {[%emt 0:04:23]} 24. Nxg7 {[%emt 0:07:53]} Kxg7 {[%emt 0:00:26]} 25. Qd4 {[%emt 0:03:20]} f3 {[%emt 0:02:59]} 26. Bc4 {[%emt 0:10:42]} fxg2 {[%emt 0:00:53]} 27. Kxg2 {[%emt 0:00:06]} Kh7 {[%emt 0:04:18]} 28. Ne2 {[%emt 0:12:02]} h4 {[%emt 0:04:34]} 29. Be3 {[%emt 0:01:29]} Nf3 {[%emt 0:03:56]} 30. Qxb6 {[%emt 0:02:28]} Qe7 {[%emt 0:02:10]} 31. Bd3 {[%emt 0:00:50]} Nge5 {[%emt 0:06:31]} 32. Rac1 {[%emt 0:01:11]} Nxd3 {[%emt 0:01:38]} 33. Rc7 {[%emt 0:00:04]} Bd7 {[%emt 0:00:04]} 34. Qc6 {[%emt 0:09:17]} h3+ {[%emt 0:01:40]} 35. Kh1 {[%emt 0:00:02]} Nfe5 {[%emt 0:00:10]} 36. Rxf8 {[%emt 0:00:23]} Rxf8 {[%emt 0:01:00]} 37. Qxa6 {[%emt 0:00:43]} Rf1+ {[%emt 0:00:31]} 38. Ng1 {[%emt 0:01:06]} Qf7 {[%emt 0:00:14]} 0-1

[Event "Caplin Hastings Masters 2023-24"]
[Site "Hastings"]
[Date "2024.01.02"]
[Round "6.43"]
[White "Gibbs, Dominic V"]
[Black "Norinkeviciute, Rasa"]
[Result "1-0"]
[ECO "B22"]
[WhiteElo "1795"]
[BlackElo "1905"]
[Annotator "NA RC"]
[PlyCount "105"]
[EventDate "2023.12.18"]
[EventType "swiss"]
[EventCountry "ENG"]
[SourceTitle "playchess.com"]
[Source "ChessBase"]
[SourceQuality "1"]
[TimeControl "40/6000+30:3000+30"]

1. e4 {[%emt 0:00:04]} c5 {[%emt 0:01:20]} 2. c3 {[%emt 0:00:07]} d5 {[%emt 0:00:23]} 3. exd5 {[%emt 0:00:05]} Qxd5 {[%emt 0:00:06]} 4. d4 {[%emt 0:00:10]} Nf6 {[%emt 0:01:53]} 5. Nf3 {[%emt 0:00:12]} Bg4 {[%emt 0:00:29]} 6. dxc5 {[%emt 0:00:31]} Qxc5 {[%emt 0:06:25]} 7. Na3 {[%emt 0:02:01]} Nbd7 {[%emt 0:01:57]} 8. Be3 {[%emt 0:00:27]} Qa5 {[%emt 0:02:00]} 9. h3 {[%emt 0:04:01]} Bh5 {[%emt 0:00:38]} 10. Be2 {[%emt 0:01:22]} e6 {[%emt 0:00:43]} 11. Nb5 {[%emt 0:05:58]} Nd5 {[%emt 0:03:07]} 12. Bd4 {[%emt 0:05:05]} a6 {[%emt 0:07:30]} 13. Na3 {[%emt 0:08:28]} Bxa3 {[%emt 0:03:14]} 14. bxa3 {[%emt 0:00:25]} O-O {[%emt 0:02:42]} 15. O-O {[%emt 0:05:24]} Qxa3 {[%emt 0:07:59]} 16. Bc4 {[%emt 0:05:56]} N7f6 {[%emt 0:02:44]} 17. Bb3 {[%emt 0:05:45]} b5 {[%emt 0:04:30]} 18. g4 {[%emt 0:05:58]} Bg6 {[%emt 0:00:41]} 19. Ne5 {[%emt 0:01:06]} Rac8 {[%emt 0:10:43]} 20. Rc1 {[%emt 0:19:49]} Rfd8 {[%emt 0:15:39]} 21. Qf3 {[%emt 0:10:23]} Be4 {[%emt 0:12:24]} 22. Qe2 {[%emt 0:04:56]} Nf4 {[%emt 0:09:14]} 23. Qe3 {[%emt 0:00:53]} Ng2 {[%emt 0:03:19]} 24. Qd2 {[%emt 0:04:10]} Bb7 {[%emt 0:03:21]} 25. f3 {[%emt 0:03:38]} Nh4 {[%emt 0:00:51]} 26. Qg5 {[%emt 0:08:17]} h6 {[%emt 0:04:22]} 27. Qd2 {[%emt 0:02:27]} Qd6 {[%emt 0:03:57]} 28. Qe1 {[%emt 0:02:28]} g5 {[%emt 0:00:53]} 29. Rd1 {[%emt 0:01:18]} Qe7 {[%emt 0:00:37]} 30. Qg3 {[%emt 0:00:51]} Nd5 {[%emt 0:00:57]} 31. Bxd5 {[%emt 0:00:37]} Rxd5 {[%emt 0:00:45]} 32. Nd3 {[%emt 0:02:24]} Ng6 {[%emt 0:00:21]} 33. f4 {[%emt 0:00:27]} Qc7 {[%emt 0:00:29]} 34. Kh2 {[%emt 0:00:36]} Rxd4 {[%emt 0:00:45]} 35. cxd4 {[%emt 0:00:29]} gxf4 {[%emt 0:00:28]} 36. Nxf4 {[%emt 0:01:04]} Qc2+ {[%emt 0:00:18]} 37. Ng2 {[%emt 0:00:26]} Qxa2 {[%emt 0:00:19]} 38. Qf2 {[%emt 0:00:34]} Qxf2 {[%emt 0:00:44]} 39. Rxf2 {[%emt 0:00:01]} Kg7 {[%emt 0:00:23]} 40. Rdf1 {[%emt 0:00:34]} Rc7 {[%emt 0:00:15]} 41. Ne3 {[%emt 0:50:52]} Re7 {[%emt 0:08:51]} 42. Kg3 {[%emt 0:00:00]} Nf8 {[%emt 0:00:12]} 43. h4 {[%emt 0:00:00]} Nd7 {[%emt 0:00:25]} 44. g5 {[%emt 0:00:00]} hxg5 {[%emt 0:00:02]} 45. hxg5 {[%emt 0:00:00]} Nb6 {[%emt 0:01:11]} 46. Ng4 {[%emt 0:00:00]} Nd5 {[%emt 0:00:38]} 47. Ne5 {[%emt 0:00:00]} Bc8 {[%emt 0:02:07]} 48. Rxf7+ {[%emt 0:00:00]} Rxf7 {[%emt 0:00:29]} 49. Rxf7+ {[%emt 0:00:00]} Kg8 {[%emt 0:00:05]} 50. g6 {[%emt 0:00:00]} a5 {[%emt 0:01:19]} 51. Ng4 {[%emt 0:00:00]} b4 {[%emt 0:01:45]} 52. Nh6+ {[%emt 0:00:00]} Kh8 {[%emt 0:00:05]} 53. Rh7# {[%emt 0:00:00]} 1-0